Cogmind - Beta 17.1 --- EXPLORER MODE // 2026.09.15 @ 12:40:49 Player: NeoBioHazard Result: Destroyed by as-75235 with Assembled Maul Performance ------------- Evolutions (0) 0 Regions Visited (2) 400 Robots Destroyed (27) 135 Value Destroyed (383) 383 Prototype IDs (4) 80 Alien Tech Used (0) 0 Bonus (0) 0 TOTAL SCORE: 998 Bonus ------- None Cogmind --------- Core Integrity 0/250 Matter 300/300 Energy 250/250 System Corruption 11% Temperature Hot (260) Movement Rolling (105) Ox1 Location -10/Mines Parts ------- > --- POWER (1) -------- Ion Engine > --- PROPULSION (2) --- Wheel Compact Wheel > --- UTILITY (3) ------ Large Storage Unit Experimental Sensor Array Improved Terrain Scanner > --- WEAPON (2) ------- Medium Laser Particle Gun > --- INVENTORY (15) --- Aluminum Leg Aluminum Leg Compact Wheel Compact Wheel Compact Wheel Large Battery (200) Assault Rifle Peak State ------------ > --- POWER ------------ Ion Engine > --- PROPULSION ------- Wheel Compact Wheel > --- UTILITY ---------- Large Storage Unit Experimental Sensor Array Improved Terrain Scanner > --- WEAPON ----------- Medium Laser Particle Gun > --- INVENTORY -------- Aluminum Leg Aluminum Leg Compact Wheel Compact Wheel Compact Wheel Large Battery Assault Rifle [Rating: 19] Favorites ----------- Power Ion Engine Engine Ion Engine Propulsion Compact Wheel Leg Aluminum Leg Wheel Compact Wheel Utility Targeting Computer Device Heat Sink Storage Large Storage Unit Processor Targeting Computer Protection Light Armor Plating Weapon Medium Laser Energy Gun Medium Laser Build | -11 -10 -10 ------- Run | Yrd Mat Min Slots Evolved 1 | . 1 . Power . | . . . Propulsion . | . . . Utility 1 | . 1 . Weapon . | . . . Parts Attached 25 | 7 10 8 Power 2 | 1 . 1 Engine 2 | 1 . 1 Core . | . . . Reactor . | . . . Propulsion 9 | 2 5 2 Treads . | . . . Leg 2 | 2 . . Wheel 7 | . 5 2 Hover . | . . . Flight . | . . . Utility 10 | 2 4 4 Device 5 | . 3 2 Storage 2 | 1 1 . Processor 2 | 1 . 1 Hackware . | . . . Protection 1 | . . 1 Artifact . | . . . Weapon 4 | 2 1 1 Energy Gun 4 | 2 1 1 Energy Cannon . | . . . Ballistic Gun . | . . . Ballistic Cannon . | . . . Launcher . | . . . Special Weapon . | . . . Impact Weapon . | . . . Slashing Weapon . | . . . Piercing Weapon . | . . . Special Melee Weapon . | . . . Unidentified Prototypes 1 | . . 1 Parts Lost 10 | . . 10 Power 1 | . . 1 Propulsion 2 | . . 2 Utility 5 | . . 5 Weapon 2 | . . 2 Highest Loss Streak 9 | . . 9 To Critical Strikes . | . . . Average Backups 9 | 2 10 9 Power . | . 1 . Propulsion 4 | . 3 5 Utility 2 | 1 3 1 Weapon 2 | . 2 1 Tool/Special . | . . . Unused Backups 5 | . 2 3 Power . | . . . Propulsion 2 | . 1 1 Utility 1 | . . 1 Weapon 2 | . 1 1 Tool/Special . | . . . Average Slot Usage (%) 94 | . 97 88 Engine 11 | . 12 11 Leg 2 | . 4 . Wheel 21 | . 20 23 Device 8 | . 10 4 Storage 12 | . 12 12 Processor 9 | . 12 3 Protection 2 | . . 7 Energy Gun 24 | . 25 24 Peak Build Rating 19 | 7 10 19 Average Rating 8 | 5 9 9 On Entrance 5 | . 7 10 Avg Prop Armor Cover (%) . | . . . Naked Turns . | . . . Heaviest Build 33 | 19 31 33 Greatest Support 32 | 20 32 26 Greatest Overweight (x) 6 | . 6 1 Average Overweight (x) . | . . 1 Largest Inventory Capacity 15 | 10 15 15 Average Capacity 13 | 8 12 15 Most Carried 15 | 4 15 15 Average Carried 9 | 2 10 9 Final Capacity 15 | 10 15 15 Final Carried 15 | 4 15 7 Class Distribution -------------------- 100% | Hacker-Mutant Dominant Class ---------------- Hacker-Mutant | -10/Materials Hacker-Mutant | -10/Mines Resources | -11 -10 -10 ----------- Run | Yrd Mat Min Matter Collected 450 | 216 154 80 Remotely . | . . . Salvage Created 1038 | . 895 143 Parts 58 | . 58 . Haulers Intercepted 2 | . 2 . Recyclers Shooed 6 | . 5 1 Parts Field Recycled . | . . . Retrieved Matter . | . . . Parts Self-Destructed . | . . . Prevented . | . . . Parts Restored . | . . . Kills | -11 -10 -10 ------- Run | Yrd Mat Min Combat Hostiles Destroyed 22 | . 10 12 Guns 21 | . 9 12 Classes Destroyed 10 | . 9 1 Worker 4 | . 4 . Builder 1 | . 1 . Tunneler 3 | . 3 . Hauler 2 | . 2 . Recycler 3 | . 3 . Mechanic 1 | . 1 . Watcher 3 | . 3 . Swarmer 4 | . 4 . Grunt 6 | . 6 . Assembled 12 | . . 12 Best Kill Streak 7 | . 5 7 Combat Bots Only 7 | . 2 7 Max Kills in Single Turn 2 | . 2 1 Gunslinging . | . . . Exploded . | . . . Melee . | . . . Uniques/NPCs Destroyed . | . . . Combat | -11 -10 -10 -------- Run | Yrd Mat Min Hostile Shots Fired 115 | . 38 77 Missed 24 | . 10 14 Hits 91 | . 28 63 Melee 22 | . . 22 Projectile 69 | . 28 41 Critical Strikes 1 | . . 1 Part Disruptions 2 | . . 2 Damage Taken 938 | . 178 760 Core 254 | . 54 200 Absorbed by Shields . | . . . Ignored by Resistances 566 | . 117 449 Core Remaining (%) 100 | 100 . . Volleys Fired 95 | . 54 41 Largest 2 | . 2 2 Hottest 115 | . 115 115 Shots Fired 169 | . 108 61 Gun 169 | . 108 61 Cannon . | . . . Launcher . | . . . Special . | . . . Kinetic . | . . . Thermal 169 | . 108 61 Explosive . | . . . Electromagnetic . | . . . Robot Hit Streak 38 | . 38 21 Robot Miss Streak 2 | . 1 2 Penetration Max . | . . . Secondary Targets 1 | . . 1 Max Gunslinging Chain 1 | . . 1 Shots Hit Robots 143 | . 92 51 Core Hits 66 | . 40 26 Critical Kills . | . . . Critical Parts Destroyed . | . . . Critical Strikes 7 | . 5 2 Burn 7 | . 5 2 Melee Attacks . | . . . Impact . | . . . Slashing . | . . . Piercing . | . . . Sneak Attacks . | . . . Combat Hostiles . | . . . Follow-up Attacks . | . . . Damage Inflicted 1964 | . 1225 739 Guns 1964 | . 1225 739 Cannons . | . . . Explosions . | . . . Melee . | . . . Ramming . | . . . Kinetic . | . . . Thermal 1964 | . 1225 739 Explosive . | . . . Electromagnetic . | . . . Impact . | . . . Slashing . | . . . Piercing . | . . . Highest Corruption 11 | . 1 11 Average Corruption 5 | . 1 8 Corruption Purged . | . . . Corruption Blocked . | . . . Effects 18 | . 2 16 Message Errors 3 | . . 3 Matter Fused 2 | . 1 1 Heat Flow Errors 4 | . . 4 Data Loss (minor) 4 | . 1 3 Misfires 2 | . . 2 Weapon Failures 3 | . . 3 Overload Shots . | . . . Overflow Damage . | . . . Projectiles . | . . . Explosions . | . . . Melee . | . . . Knockbacks . | . . . Impact . | . . . Kinetic . | . . . Secondary . | . . . Self-Inflicted Damage . | . . . Shots . | . . . Rammed . | . . . Targets Rammed . | . . . Kicked . | . . . Crushed . | . . . Highest Temperature 455 | . 340 455 Average Temperature 126 | . 83 176 Received Heat Transfer 166 | . 126 40 Effects 7 | . . 7 Energy Bleed 3 | . . 3 Interference 4 | . . 4 Siege Activations . | . . . Martial Activations . | . . . Shielding Activations . | . . . Robots Disrupted . | . . . Combat Hostiles . | . . . Robots Corrupted . | . . . Combat Hostiles . | . . . Parts Fried . | . . . Impact Corruptions . | . . . Robots Melted 2 | . 2 . Combat Hostiles 1 | . 1 . Parts Melted 7 | . 7 . Heat Transferred 5809 | . 3811 1998 Parts Sabotaged . | . . . Parts Stolen . | . . . Parts Stripped . | . . . Power Chain Reactions . | . . . Alert | -11 -10 -10 ------- Run | Yrd Mat Min Maximum Alert Level . | . . . Low Security (%) 100 | 100 100 100 Level 1 . | . . . Level 2 . | . . . Level 3 . | . . . Level 4 . | . . . Level 5 . | . . . High Security . | . . . Max Security . | . . . Peak Influence 78 | . 78 . Initial . | . . . Average 9 | . 14 . Influence Increases 420 | . 420 . Destroy 0b10 Robot/C 200 | . 200 . Destroy 0b10 Robot/NC 85 | . 85 . Destroy Leader 50 | . 50 . Successful Hack 23 | . 23 . Destroy Structure 2 | . 2 . Lose Combat Pursuer 60 | . 60 . Influence Decreases 420 | . 420 . Time Decay 415 | . 415 . Purge Threat 5 | . 5 . Squads Dispatched . | . . . Investigation . | . . . Extermination . | . . . Reinforcement . | . . . Assault . | . . . Garrison . | . . . Intercept . | . . . Searches Triggered . | . . . Construction Impeded . | . . . Haulers Reinforced . | . . . Active Scanning Responses . | . . . Cargo Convoy Interrupts . | . . . Stealth | -11 -10 -10 --------- Run | Yrd Mat Min Distress Signals 2 | . 2 . Communications Jammed . | . . . Distress Signals . | . . . Times Spotted 36 | . 16 20 Peak Tracking Total 12 | . 4 12 Tactical Retreats 6 | . 2 4 Traps | -11 -10 -10 ------- Run | Yrd Mat Min Traps Triggered 2 | . 2 . Indirectly . | . . . Trap Hack Attempts . | . . . Triggered . | . . . Disarmed . | . . . Reprogrammed . | . . . Reused . | . . . Traps Extracted . | . . . Installed . | . . . Triggered . | . . . Machines | -11 -10 -10 ---------- Run | Yrd Mat Min Machines Disabled . | . . . Max in Single Turn . | . . . Machines Repaired . | . . . Machines Dismantled . | . . . Machines Sabotaged . | . . . Overloaded Fab Kills . | . . . Hacking | -11 -10 -10 --------- Run | Yrd Mat Min Machines Accessed 7 | . 7 . Terminals 7 | . 7 . Fabricators . | . . . Repair Stations . | . . . Recycling Units . | . . . Scanalyzers . | . . . Garrison Access . | . . . Total Hacks 23 | . 23 . Successful 20 | . 20 . Failed 3 | . 3 . Catastrophic . | . . . Database Lockouts . | . . . Manual 18 | . 18 . Terminals 23 | . 23 . Fabricators . | . . . Repair Stations . | . . . Recycling Units . | . . . Scanalyzers . | . . . Garrison Access . | . . . Terminal Hacks 11 | . 11 . Record 1 | . 1 . Robot Analysis 4 | . 4 . Prototype ID Bank 2 | . 2 . Unreport Threat 2 | . 2 . Locate Traps 1 | . 1 . Hauler Manifests 1 | . 1 . Fabricator Hacks . | . . . Repair Station Hacks . | . . . Recycling Unit Hacks . | . . . Scanalyzer . | . . . Garrison Access Hacks . | . . . Unauthorized Hacks 9 | . 9 . Terminals 9 | . 9 . Botnet 3 | . 3 . Skim 6 | . 6 . Fabricators . | . . . Repair Stations . | . . . Recycling Units . | . . . Scanalyzers . | . . . Garrison Access . | . . . Data Cores Recovered . | . . . Used . | . . . Hacking Detections 6 | . 6 . Full Trace Events 1 | . 1 . Feedback Events . | . . . Feedback Blocked . | . . . Robot Schematics Acquired . | . . . Robots Built . | . . . Authchips . | . . . Time . | . . . Total Robot Build Rating . | . . . Part Schematics Acquired . | . . . Parts Built . | . . . Authchips . | . . . Time . | . . . Total Part Build Rating . | . . . Part Studies Acquired . | . . . Parts Repaired . | . . . Time . | . . . Parts Recycled . | . . . Recycled Matter . | . . . Retrieved Matter . | . . . Retrieved Components . | . . . Parts Scanalyzed . | . . . Part Schematics Acquired . | . . . Parts Damaged . | . . . Bothacking | -11 -10 -10 ------------ Run | Yrd Mat Min Used RIF Installer . | . . . Robots Hacked . | . . . Non-combat . | . . . Combat . | . . . Robot Hacks Applied . | . . . Relay Couplers Released . | . . . Fabnet Peak Effective % . | . . . Robots Rewired . | . . . Allies Hacked . | . . . Hacks Repelled . | . . . Allies | -11 -10 -10 -------- Run | Yrd Mat Min Total Allies . | . . . Largest Group . | . . . Highest-Rated Group . | . . . Highest-Rated Ally . | . . . Total Orders . | . . . Ally Attacks . | . . . Total Damage . | . . . Kills . | . . . Allies Corrupted . | . . . Allies Melted . | . . . Intel | -11 -10 -10 ------- Run | Yrd Mat Min Active Infowar (turns) 198 | . 189 9 Sensors 9 | . . 9 Terrain 6 | . . 6 Structural 189 | . 189 . Robot Analysis Total 4 | . 4 . Derelict Logs Recovered . | . . . Drone Launches . | . . . Drone Recoveries . | . . . Exploration | -11 -10 -10 ------------- Run | Yrd Mat Min Turns Passed 1780 | 77 1215 488 Spaces Moved 985 | 57 695 233 Core 11 | 8 3 . Treads . | . . . Legs 174 | 49 125 . Wheels 800 | . 567 233 Hover . | . . . Flight . | . . . Fastest Speed 50 | 50 95 95 Average Speed 104 | 110 104 103 Slowest Speed 350 | 120 350 105 Overloaded Moves . | . . . Propulsion Burnouts . | . . . Robots Hopped . | . . . Potential Cave-ins . | . . . Cave-ins Triggered . | . . . Exploration Rate (%) 53 | 4 96 60 Regions Visited 2 Branch Regions 1 Pre-discovered Areas . | . . . Known Exits Taken 2 | 1 1 . Unknown Exits Taken . | . . . Scrap Searched 2 | . . 2 Spaces Dug . | . . . Terrain Destroyed . | . . . Melee . | . . . Projectile . | . . . AOE . | . . . Terrain Rammed . | . . . Walls Destroyed . | . . . Machines Disabled . | . . . Actions | -11 -10 -10 --------- Run | Yrd Mat Min Total 1558 | 67 1073 418 Wait 436 | . 302 134 Move 983 | 56 694 233 Hop . | . . . Pick Up 11 | 4 7 . Fast Attach 12 | 7 3 2 Attach 8 | . . 8 Detach 2 | . 2 . Swap 7 | . 7 . Drop 4 | . 4 . Fire 95 | . 54 41 Melee . | . . . Ram . | . . . Kick . | . . . Crush . | . . . Escape Stasis . | . . . Rewire . | . . . Trap . | . . . Miscellaneous . | . . . Route ------- -11/Scrapyard -10/Materials (discovered 6 exits: *Mat x3 / *Min x2 / Sub) -10/Mines (discovered 3 exits: Mat x2 / *Sub) History --------- Turn | Location | Event 7 | -11/Scrapyard | Identified exit to Materials 7 | -11/Scrapyard | Discovered exit to Materials (range 14) 78 | -11/Scrapyard | Entered Materials 78 | -10/Materials | Evolved 1 slot: Utility x1 293 | -10/Materials | Identified exit to Mines 293 | -10/Materials | Discovered exit to Mines (range 15) 303 | -10/Materials | Build established: Hacker-Mutant 650 | -10/Materials | Identified exit to Materials 650 | -10/Materials | Discovered exit to Materials (range 11) 883 | -10/Materials | Discovered exit to Materials (range 16) 943 | -10/Materials | Discovered exit to Mines (range 16) 1027 | -10/Materials | Discovered exit to Materials (range 16) 1080 | -10/Materials | Identified exit to Subcaves 1121 | -10/Materials | Learned Storage trap positions 1154 | -10/Materials | Learned 4 Recycling zone layouts 1209 | -10/Materials | Learned Storage security intel 1250 | -10/Materials | Learned Storage stockpile data 1293 | -10/Materials | Entered Mines 1317 | -10/Mines | Assembled infested the area 1398 | -10/Mines | Core integrity fell below 50% 1422 | -10/Mines | Destroyed 7 combat bots 1426 | -10/Mines | System corruption reached 10% 1442 | -10/Mines | Core integrity fell below 20% 1466 | -10/Mines | Lost 9 parts (1p2n4u2w) 1536 | -10/Mines | Discovered exit to Subcaves (range 11) 1745 | -10/Mines | Found a damaged Exp. Sensor Array with a note attached 1750 | -10/Mines | Found Prototype Device 1750 | -10/Mines | Identified Exp. Sensor Array 1781 | -10/Mines | Destroyed by as-75235 with Assembled Maul Last Messages --------------- 01750_ Acquired Prototype Device. 01750_ Identified Exp. Sensor Array. 01751_ Overheating: Energy bleed (-52). 01752_ System corrupted: Heat flow error (+195). 01753_ Acquired Imp. Terrain Scanner. 01754_ R-06 Scavenger system corrupted by crushing effect. 01754_ Acquired 20 matter. 01755_ Overheating: Energy bleed (-45). 01755_ R-06 Scavenger system terminally corrupted. 01759_ Overheating: System interference. 01759_ Imp. Terrain Scanner temporarily disabled. 01759_ Exp. Sensor Array temporarily disabled. 01760_ K-01 Serf collects debris. 01774_ Knocked back. 01774_ as-52578 system corrupted by crushing effect. 01776_ as-52578 destroyed. 01778_ System corrupted: Component data lost. 01781_ Overheating: System interference. 01781_ Particle Gun temporarily disabled. 01781_ Med. Laser temporarily disabled. Map ----- +----------------------------------------------------+ | ??????# #????# #???????????# #?????????????? | | ??????# #???? ????????????# #??????######?? | | ??????# #???## #????????????# ##???## #?? | | ??????## #??## #????????????# ###?# #?? | | ???????# #??# #????????????## ### #??? | | ???????# #??# #??????????????## #????? | | ???????# #### ##??????????????## ##????? | | ???????# ## ####????????????# ######?????? | | ???????# ########????## #??????????? | | ????#### ##?### ##?????????? | | ???## ### #?????????? | | ???# #?????????? | | ???# ### ### ##?????????? | | ???## ##### ##?####??????????? | | ????## #### ## #????????????????? | | ?????## ##?# ## #????????????????? | | ??????## #??# """ ##????????????????? | | ???????## ##??# """ ###?????????????????? | | ????????# #??## """ ##???????????????????? | | ????????# #?## ##????????????????????? | | ????????# #?# % ##?????????????????????? | | ????????# ## ##### #??????????????????????? | | ????????# # #????# #??????????????????????? | | ????????# #?????# #??????????????????????? | | ????????# ## #?????# a#??????????????????????? | | ????????# ### #?????# @#??????????????????????? | | ?????#### #?## #?????#%%#??????????????????????? | | ###### " #??####????##%%##?????????????????????? | | #??????????# ! ###???????????????????? | | ! #??????????# ##??????????????????? | | %#### ##??????????# % #??????????????????? | | #??## ###???????????# ! #???#####??????????? | | #???## #?????????????# ##?## ##?????????? | | #??### #?????????????## %### #?????????? | | #### # #??????????????## *%!% ##????????? | | ?? #???????????????### =%% %#####????? | | ? # #?????????????????## !*!! ## | | # ####???????????????## *!%= % %% % #? | | ???????????????### !* ###### #? | | # #?????????????????????## ##????????? | | ##??????????????????????## ##?????????? | | ##????????????????????????# #??????????? | | #?????????????????????????# #??????????? | | # #?????????????????????????# !##??????????? | | = ##?????????????????????????## *%#???????????? | | #???????????????????????????## =#???????????? | | # #????? #???????????????????# #???????????? | | % ### ???????????